fUST/lending_fUST_20250210
["ID","MTS","AMOUNT","RATE_DAILY","PERIOD"]
[352548757,1739160669059,-923.78,0.00013561,2]
[352548758,1739160669068,-758.85,0.00013561,2]
[352548759,1739160669078,-500.0,0.00013561,2]
[352548760,1739160669088,-37.6586051,0.00013561,2]
[352548761,1739161536135,-1178.00534268,9.699e-05,2]
[352548762,1739161556220,-1219.17683349,9.699e-05,2]
[352548763,1739161556240,-15.18264494,9.995e-05,2]
[352548765,1739161630092,-1879.32048026,9.996e-05,2]
[352548766,1739161632100,-1743.88377958,9.996e-05,2]
[352548767,1739161642132,-374.0927677,9.996e-05,2]
[352548768,1739161647128,-564.37602168,9.996e-05,2]
[352548772,1739161745140,-4054.59822024,9.996e-05,2]
[352548773,1739161759123,-175.71274764,9.996e-05,2]
[352548774,1739161759145,-400.0,0.00010685,2]
[352548775,1739161759167,-1146.43145236,0.00010693,2]
[352548826,1739161832343,-198.38053057,0.00010693,2]
[352548828,1739161832353,-183.28173978,0.00010858,2]
[352548830,1739161832363,-818.33773165,0.00010858,2]
[352548832,1739161832376,-6434.61127217,0.00010858,2]
[352548834,1739161832387,-690.44400415,0.00010956,2]
[352548837,1739161832398,-300.0,0.00010956,2]
[352548839,1739161832409,-518.94305429,0.00010957,2]
[352548841,1739161832419,-500.0,0.00010957,2]
[352548843,1739161832429,-500.0,0.00010957,2]
[352548845,1739161832442,-500.0,0.00010957,2]
[352548847,1739161832453,-363.16517724,0.00010957,2]
[352548849,1739161832463,-500.0,0.00010957,2]
[352548851,1739161832473,-500.0,0.00010957,2]
[352548853,1739161832485,-500.0,0.00010957,2]
[352548855,1739161832495,-500.0,0.00010957,2]
[352548857,1739161832505,-500.0,0.00010957,2]
[352548859,1739161832516,-500.0,0.00010957,2]
[352548861,1739161832527,-452.48306004,0.00010957,2]
[352548863,1739161832537,-500.0,0.00010957,2]
[352548866,1739161832548,-500.0,0.00010957,2]
[352548868,1739161832558,-500.0,0.00010957,2]
[352548870,1739161832568,-500.0,0.00010957,2]
[352548872,1739161832578,-500.0,0.00010957,2]
[352548874,1739161832588,-500.0,0.00010957,2]
[352548876,1739161832598,-500.0,0.00010957,2]
[352548878,1739161832609,-500.0,0.00010957,2]
[352548880,1739161832619,-500.0,0.00010957,2]
[352548882,1739161832629,-500.0,0.00010957,2]
[352548885,1739161832639,-500.0,0.00010957,2]
[352548887,1739161832649,-500.0,0.00010957,2]
[352548889,1739161832659,-500.0,0.00010957,2]
[352548891,1739161832670,-500.0,0.00010957,2]
[352548893,1739161832680,-500.0,0.00010957,2]
[352548895,1739161832690,-500.0,0.00010957,2]
[352548897,1739161832700,-500.0,0.00010957,2]
[352548899,1739161832711,-500.0,0.00010957,2]
[352548901,1739161832720,-500.0,0.00010957,2]
[352548903,1739161832731,-543.77297535,0.00010957,2]
[352548905,1739161832741,-500.0,0.00010957,2]
[352548907,1739161832751,-500.0,0.00010957,2]
[352548909,1739161832762,-500.0,0.00010957,2]
[352548912,1739161832775,-500.0,0.00010957,2]
[352548914,1739161832785,-500.0,0.00010957,2]
[352548916,1739161832795,-500.0,0.00010957,2]
[352548918,1739161832805,-500.0,0.00010957,2]
[352548920,1739161832816,-500.0,0.00010957,2]
[352548922,1739161832826,-500.0,0.00010957,2]
[352548924,1739161832837,-500.0,0.00010957,2]
[352548945,1739161833039,-403.93624639,0.00010957,2]
[352548949,1739161833060,-500.0,0.00010957,2]
[352548951,1739161833075,-609.79749118,0.00010958,2]
[352548953,1739161833086,-504.40682222,0.00010958,2]
[352548955,1739161833096,-500.0,0.00010958,2]
[352548957,1739161833107,-500.0,0.00010958,2]
[352548959,1739161833117,-503.49520543,0.00010958,2]
[352548961,1739161833126,-500.0,0.00010958,2]
[352548963,1739161833136,-500.0,0.00010958,2]
[352548965,1739161833147,-500.0,0.00010958,2]
[352548967,1739161833157,-505.14423821,0.00010958,2]
[352548969,1739161833166,-500.0,0.00010958,2]
[352548971,1739161833176,-500.0,0.00010958,2]
[352548973,1739161833185,-500.0,0.00010958,2]
[352548975,1739161833194,-500.0,0.00010958,2]
[352548977,1739161833205,-502.13907655,0.00010958,2]
[352548979,1739161833215,-500.0,0.00010958,2]
[352548981,1739161833224,-411.74466079,0.00010958,2]
[352548983,1739161833233,-500.0,0.00010958,2]
[352548985,1739161833243,-500.0,0.00010958,2]
[352548987,1739161833253,-500.0,0.00010958,2]
[352548989,1739161833262,-500.0,0.00010958,2]
[352548991,1739161833273,-500.0,0.00010958,2]
[352548994,1739161833283,-500.0,0.00010958,2]
[352548996,1739161833293,-500.0,0.00010958,2]
[352548997,1739161833303,-501.87606981,0.00010958,2]
[352549000,1739161833313,-500.0,0.00010958,2]
[352549002,1739161833323,-213.97509323,0.00010958,2]
[352549003,1739161833332,-500.0,0.00010958,2]
[352549005,1739161833342,-500.0,0.00010958,2]
[352549008,1739161833352,-500.0,0.00010958,2]
[352549010,1739161833362,-500.0,0.00010958,2]
[352549011,1739161833372,-501.40233573,0.00010958,2]
[352549014,1739161833382,-500.0,0.00010958,2]
[352549016,1739161833392,-500.0,0.00010958,2]
[352549017,1739161833402,-500.0,0.00010958,2]
[352549019,1739161833412,-500.0,0.00010958,2]
[352549021,1739161833422,-500.0,0.00010958,2]
[352549023,1739161833432,-500.0,0.00010958,2]
[352549025,1739161833443,-500.0,0.00010958,2]
[352549027,1739161833455,-500.0,0.00010958,2]
[352549029,1739161833464,-508.44518752,0.00010958,2]
[352549031,1739161833473,-502.41501435,0.00010958,2]
[352549033,1739161833482,-296.89120569,0.00010958,2]
[352549035,1739161833494,-500.0,0.00010958,2]
[352549037,1739161833503,-506.04154076,0.00010958,2]
[352549039,1739161833513,-500.0,0.00010958,2]
[352549041,1739161833525,-500.0,0.00010958,2]
[352549043,1739161833535,-500.0,0.00010958,2]
[352549046,1739161833545,-500.0,0.00010958,2]
[352549047,1739161833555,-500.0,0.00010958,2]
[352549049,1739161833564,-500.0,0.00010958,2]
[352549052,1739161833574,-500.0,0.00010958,2]
[352549053,1739161833584,-500.0,0.00010958,2]
[352549056,1739161833595,-500.0,0.00010958,2]
[352549058,1739161833605,-590.20434192,0.00010958,2]
[352549059,1739161833615,-500.0,0.00010958,2]
[352549061,1739161833625,-501.23312338,0.00010958,2]
[352549063,1739161833634,-606.40808329,0.00010958,2]
[352549065,1739161833643,-500.0,0.00010958,2]
[352549067,1739161833652,-501.16015369,0.00010958,2]
[352549069,1739161833662,-500.0,0.00010958,2]
[352549071,1739161833671,-500.99209345,0.00010958,2]
[352549073,1739161833681,-500.0,0.00010958,2]
[352549075,1739161833690,-500.0,0.00010958,2]
[352549077,1739161833700,-500.0,0.00010958,2]
[352549079,1739161833711,-500.0,0.00010958,2]
[352549081,1739161833722,-500.0,0.00010958,2]
[352549083,1739161833733,-527.44135703,0.00010958,2]
[352549085,1739161833743,-500.0,0.00010958,2]
[352549087,1739161833752,-500.0,0.00010958,2]
[352549089,1739161833762,-503.20686269,0.00010958,2]
[352549091,1739161833772,-500.0,0.00010958,2]
[352549092,1739161833782,-500.0,0.00010958,2]
[352549094,1739161833796,-500.0,0.00010958,2]
[352549097,1739161833807,-500.0,0.00010958,2]
[352549098,1739161833816,-500.0,0.00010958,2]
[352549100,1739161833826,-500.0,0.00010958,2]
[352549102,1739161833835,-500.0,0.00010958,2]
[352549104,1739161833845,-500.0,0.00010958,2]
[352549105,1739161833854,-500.0,0.00010958,2]
[352549107,1739161833864,-500.0,0.00010958,2]
[352549109,1739161833874,-500.0,0.00010958,2]
[352549111,1739161833884,-176.98050047,0.00010958,2]
[352549113,1739161833894,-500.0,0.00010958,2]
[352549115,1739161833904,-500.0,0.00010958,2]
[352549117,1739161833914,-500.0,0.00010958,2]
[352549119,1739161833924,-500.0,0.00010958,2]
[352549121,1739161833934,-500.0,0.00010958,2]
[352549123,1739161833944,-385.58122683,0.00010958,2]
[352549126,1739161833960,-123.95220771,0.00010958,2]
[352549128,1739161833973,-500.0,0.00010958,2]
[352549130,1739161833984,-500.0,0.00010958,2]
[352549132,1739161833994,-500.0,0.00010958,2]
[352549134,1739161834004,-555.49,0.00010958,2]
[352549136,1739161834014,-501.55257653,0.00010958,2]
[352549138,1739161834024,-500.0,0.00010958,2]
[352549140,1739161834034,-500.0,0.00010958,2]
[352549142,1739161834044,-500.0,0.00010958,2]
[352549144,1739161834054,-500.0,0.00010958,2]
[352549146,1739161834064,-500.0,0.00010958,2]
[352549148,1739161834075,-500.0,0.00010958,2]
[352549151,1739161834085,-500.0,0.00010958,2]
[352549152,1739161834094,-500.0,0.00010958,2]
[352549154,1739161834104,-500.0,0.00010958,2]
[352549157,1739161834113,-500.0,0.00010958,2]
[352549159,1739161834123,-627.8,0.00010958,2]
[352549160,1739161834132,-500.0,0.00010958,2]
[352549163,1739161834142,-500.0,0.00010958,2]
[352549165,1739161834152,-500.0,0.00010958,2]
[352549167,1739161834163,-500.0,0.00010958,2]
[352549169,1739161834172,-500.0,0.00010958,2]
[352549171,1739161834181,-500.0,0.00010958,2]
[352549173,1739161834191,-500.0,0.00010958,2]
[352549175,1739161834201,-500.0,0.00010958,2]
[352549177,1739161834211,-500.0,0.00010958,2]
[352549179,1739161834221,-500.0,0.00010958,2]
[352549181,1739161834230,-500.0,0.00010958,2]
[352549183,1739161834239,-500.0,0.00010958,2]
[352549185,1739161834249,-500.0,0.00010958,2]
[352549187,1739161834260,-500.38924188,0.00010958,2]
[352549189,1739161834271,-503.17141945,0.00010958,2]
[352549191,1739161834281,-500.0,0.00010958,2]
[352549193,1739161834291,-500.0,0.00010958,2]
[352549195,1739161834300,-500.0,0.00010958,2]
[352549197,1739161834310,-501.54808729,0.00010958,2]
[352549199,1739161834319,-502.78673095,0.00010958,2]
[352549201,1739161834329,-500.0,0.00010958,2]
[352549203,1739161834338,-500.0,0.00010958,2]
[352549205,1739161834348,-502.8538781,0.00010958,2]
[352549207,1739161834358,-500.0,0.00010958,2]
[352549209,1739161834367,-500.0,0.00010958,2]
[352549211,1739161834377,-500.0,0.00010958,2]
[352549213,1739161834387,-624.67298155,0.00010958,2]
[352549215,1739161834396,-258.35330489,0.00010958,2]
[352549217,1739161834406,-500.0,0.00010958,2]
[352549219,1739161834417,-500.0,0.00010958,2]
[352549222,1739161834429,-500.0,0.00010958,2]
[352549224,1739161834440,-500.0,0.00010958,2]
[352549226,1739161834453,-500.0,0.00010958,2]
[352549228,1739161834463,-500.0,0.00010958,2]
[352549230,1739161834472,-500.0,0.00010958,2]
[352549232,1739161834483,-500.0,0.00010958,2]
[352549234,1739161834492,-500.0,0.00010958,2]
[352549236,1739161834502,-500.0,0.00010958,2]
[352549238,1739161834512,-500.0,0.00010958,2]
[352549241,1739161834527,-500.0,0.00010958,2]
[352549243,1739161834537,-500.0,0.00010958,2]
[352549245,1739161834546,-500.0,0.00010958,2]
[352549246,1739161834555,-500.0,0.00010958,2]
[352549248,1739161834565,-500.0,0.00010958,2]
[352549250,1739161834574,-500.0,0.00010958,2]
[352549252,1739161834584,-502.99163922,0.00010958,2]
[352549254,1739161834593,-500.0,0.00010958,2]
[352549256,1739161834603,-500.0,0.00010958,2]
[352549258,1739161834612,-500.0,0.00010958,2]
[352549260,1739161834621,-500.0,0.00010958,2]
[352549262,1739161834631,-501.50530517,0.00010958,2]
[352549264,1739161834640,-500.0,0.00010958,2]
[352549266,1739161834649,-500.0,0.00010958,2]
[352549268,1739161834659,-500.0,0.00010958,2]
[352549270,1739161834668,-500.0,0.00010958,2]
[352549272,1739161834677,-500.0,0.00010958,2]
[352549274,1739161834686,-500.0,0.00010958,2]
[352549276,1739161834695,-286.03603718,0.00010958,2]
[352549278,1739161834705,-500.0,0.00010958,2]
[352549280,1739161834714,-500.0,0.00010958,2]
[352549282,1739161834724,-500.0,0.00010958,2]
[352549284,1739161834733,-500.0,0.00010958,2]
[352549286,1739161834743,-500.0,0.00010958,2]
[352549288,1739161834752,-500.0,0.00010958,2]
[352549291,1739161834762,-500.0,0.00010958,2]
[352549292,1739161834773,-500.0,0.00010958,2]
[352549294,1739161834782,-500.0,0.00010958,2]
[352549297,1739161834791,-500.0,0.00010958,2]
[352549298,1739161834801,-500.0,0.00010958,2]
[352549300,1739161834810,-500.0,0.00010958,2]
[352549303,1739161834820,-500.0,0.00010958,2]
[352549304,1739161834829,-500.0,0.00010958,2]
[352549307,1739161834839,-501.70467411,0.00010958,2]
[352549308,1739161834848,-500.0,0.00010958,2]
[352549310,1739161834857,-500.0,0.00010958,2]
[352549313,1739161834867,-500.0,0.00010958,2]
[352549315,1739161834876,-500.0,0.00010958,2]
[352549317,1739161834885,-500.0,0.00010958,2]
[352549319,1739161834894,-500.0,0.00010958,2]
[352549321,1739161834904,-500.0,0.00010958,2]
[352549322,1739161834913,-500.0,0.00010958,2]
[352549325,1739161834923,-500.0,0.00010958,2]
[352549327,1739161834932,-501.02880602,0.00010958,2]
[352549329,1739161834941,-500.0,0.00010958,2]
[352549331,1739161834951,-500.0,0.00010958,2]
[352549332,1739161834960,-500.0,0.00010958,2]
[352549334,1739161834969,-500.0,0.00010958,2]
[352549337,1739161834979,-502.74595733,0.00010958,2]
[352549339,1739161834988,-502.19461125,0.00010958,2]
[352549341,1739161834997,-168.03704454,0.00010958,2]
[352549343,1739161835006,-500.0,0.00010958,2]
[352549345,1739161835017,-500.78690807,0.00010958,2]
[352549347,1739161835026,-500.0,0.00010958,2]
[352549349,1739161835035,-500.0,0.00010958,2]
[352549350,1739161835044,-507.51000782,0.00010958,2]
[352549353,1739161835054,-500.0,0.00010958,2]
[352549354,1739161835065,-500.53716093,0.00010958,2]
[352549357,1739161835074,-500.0,0.00010958,2]
[352549359,1739161835084,-500.90578574,0.00010958,2]
[352549361,1739161835094,-501.36750273,0.00010958,2]
[352549363,1739161835103,-500.62441331,0.00010958,2]
[352549365,1739161835112,-500.0,0.00010958,2]
[352549367,1739161835122,-500.0,0.00010958,2]
[352549369,1739161835131,-500.0,0.00010958,2]
[352549371,1739161835140,-502.93732061,0.00010958,2]
[352549373,1739161835149,-500.0,0.00010958,2]
[352549375,1739161835159,-500.0,0.00010958,2]
[352549377,1739161835168,-500.0,0.00010958,2]
[352549379,1739161835177,-500.0,0.00010958,2]
[352549381,1739161835186,-500.0,0.00010958,2]
[352549383,1739161835195,-502.54473689,0.00010958,2]
[352549385,1739161835204,-500.45030768,0.00010958,2]
[352549387,1739161835214,-501.1745909,0.00010958,2]
[352549388,1739161835225,-503.85365685,0.00010958,2]
[352549390,1739161835234,-500.0,0.00010958,2]
[352549393,1739161835244,-500.45625429,0.00010958,2]
[352549395,1739161835253,-500.0,0.00010958,2]
[352549397,1739161835263,-500.0,0.00010958,2]
[352549399,1739161835273,-500.0,0.00010958,2]
[352549401,1739161835282,-500.0,0.00010958,2]
[352549403,1739161835291,-500.0,0.00010958,2]
[352549405,1739161835300,-500.0,0.00010958,2]
[352549407,1739161835309,-500.0,0.00010958,2]
[352549409,1739161835318,-1018.03,0.00010958,2]
[352549411,1739161835327,-500.0,0.00010958,2]
[352549413,1739161835337,-500.0,0.00010958,2]
[352549415,1739161835346,-501.2948225,0.00010958,2]
[352549416,1739161835355,-500.0,0.00010958,2]
[352549419,1739161835365,-500.0,0.00010958,2]
[352549420,1739161835374,-502.19146056,0.00010958,2]
[352549422,1739161835383,-500.0,0.00010958,2]
[352549425,1739161835392,-354.61194659,0.00010958,2]
[352549427,1739161835401,-500.0,0.00010958,2]
[352549429,1739161835411,-500.0,0.00010958,2]
[352549431,1739161835420,-500.0,0.00010958,2]
[352549433,1739161835429,-502.28224242,0.00010958,2]
[352549435,1739161835440,-500.0,0.00010958,2]
[352549437,1739161835452,-501.39882322,0.00010958,2]
[352549439,1739161835461,-500.0,0.00010958,2]
[352549441,1739161835471,-501.92399289,0.00010958,2]
[352549443,1739161835480,-500.0,0.00010958,2]
[352549445,1739161835490,-500.53330182,0.00010958,2]
[352549447,1739161835499,-500.0,0.00010958,2]
[352549449,1739161835508,-502.22250635,0.00010958,2]
[352549451,1739161835517,-500.0,0.00010958,2]
[352549453,1739161835528,-500.0,0.00010958,2]
[352549455,1739161835538,-500.0,0.00010958,2]
[352549457,1739161835547,-501.00715208,0.00010958,2]
[352549459,1739161835556,-500.0,0.00010958,2]
[352549461,1739161835565,-500.0,0.00010958,2]
[352549463,1739161835574,-500.0,0.00010958,2]
[352549465,1739161835583,-500.0,0.00010958,2]
[352549467,1739161835592,-500.0,0.00010958,2]
[352549469,1739161835600,-303.7465284,0.00010958,2]
[352549471,1739161835610,-502.11192045,0.00010958,2]
[352549473,1739161835623,-500.0,0.00010958,2]
[352549475,1739161835637,-500.0,0.00010958,2]
[352549477,1739161835646,-500.0,0.00010958,2]
[352549479,1739161835655,-367.47351078,0.00010958,2]
[352549566,1739161837968,-132.52648922,0.00010958,2]
[352549567,1739161837978,-500.0,0.00010958,2]
[352549568,1739161837988,-500.0,0.00010958,2]
[352549569,1739161837997,-500.0,0.00010958,2]
[352549570,1739161838007,-500.0,0.00010958,2]
[352549571,1739161838017,-504.10515674,0.00010958,2]
[352549572,1739161838026,-500.0,0.00010958,2]
[352549573,1739161838036,-500.0,0.00010958,2]
[352549574,1739161838046,-500.0,0.00010958,2]
[352549575,1739161838055,-500.0,0.00010958,2]
[352549576,1739161838064,-500.0,0.00010958,2]
[352549577,1739161838074,-500.0,0.00010958,2]
[352549578,1739161838083,-500.0,0.00010958,2]
[352549579,1739161838092,-500.0,0.00010958,2]
[352549580,1739161838101,-500.0,0.00010958,2]
[352549581,1739161838111,-500.0,0.00010958,2]
[352549582,1739161838120,-500.0,0.00010958,2]
[352549583,1739161838130,-500.0,0.00010958,2]
[352549584,1739161838139,-500.0,0.00010958,2]
[352549585,1739161838148,-500.55357512,0.00010958,2]
[352549586,1739161838158,-500.0,0.00010958,2]
[352549587,1739161838167,-290.10951971,0.00010958,2]
[352549588,1739161838184,-209.89048029,0.00010958,2]
[352549589,1739161838193,-500.0,0.00010958,2]
[352549590,1739161838202,-500.0,0.00010958,2]
[352549591,1739161838211,-500.0,0.00010958,2]
[352549592,1739161838348,-1887.29,0.00010958,2]
[352549593,1739161838358,-500.0,0.00010958,2]
[352549594,1739161838367,-502.96487902,0.00010958,2]
[352549595,1739161838376,-506.35914411,0.00010958,2]
[352549596,1739161838386,-500.0,0.00010958,2]
[352549597,1739161838395,-770.25952619,0.00010958,2]
[352549598,1739161838407,-285.25047381,0.00010958,2]
[352549599,1739161838417,-500.0,0.00010958,2]
[352549600,1739161838426,-6983.0,0.00010958,2]
[352549601,1739161838435,-688.1,0.00010958,2]
[352549602,1739161838445,-503.57221153,0.00010958,2]
[352549603,1739161838458,-500.0,0.00010958,2]
[352549604,1739161838468,-513.52210028,0.00010958,2]
[352549605,1739161838477,-500.0,0.00010958,2]
[352549606,1739161838488,-500.0,0.00010958,2]
[352549607,1739161838497,-500.0,0.00010958,2]
[352549608,1739161838506,-500.0,0.00010958,2]
[352549609,1739161838515,-500.0,0.00010958,2]
[352549610,1739161838525,-500.0,0.00010958,2]
[352549611,1739161838535,-500.0,0.00010958,2]
[352549612,1739161838544,-500.0,0.00010958,2]
[352549613,1739161838554,-422.28114881,0.00010958,2]
[352549614,1739161838563,-500.0,0.00010958,2]
[352549615,1739161838572,-500.0,0.00010958,2]
[352549616,1739161838581,-895.01,0.00010958,2]
[352549617,1739161838590,-500.0,0.00010958,2]
[352549618,1739161838600,-529.76,0.00010958,2]
[352549619,1739161838609,-500.0,0.00010958,2]
[352549620,1739161838618,-500.0,0.00010958,2]
[352549621,1739161838627,-500.0,0.00010958,2]
[352549622,1739161838636,-14910.07,0.00010958,2]
[352549623,1739161838645,-500.0,0.00010958,2]
[352549624,1739161838654,-1101.18,0.00010958,2]
[352549625,1739161838663,-500.0,0.00010958,2]
[352549626,1739161838674,-500.0,0.00010958,2]
[352549627,1739161838683,-500.0,0.00010958,2]
[352549628,1739161838693,-500.0,0.00010958,2]
[352549629,1739161838702,-682.42,0.00010958,2]
[352549630,1739161838711,-500.0,0.00010958,2]
[352549631,1739161838720,-793.74,0.00010958,2]
[352549632,1739161838730,-500.0,0.00010958,2]
[352549633,1739161838739,-914.04,0.00010958,2]
[352549634,1739161838748,-500.0,0.00010958,2]
[352549635,1739161838757,-508.93314052,0.00010958,2]
[352549636,1739161838767,-500.0,0.00010958,2]
[352549637,1739161838776,-500.0,0.00010958,2]
[352549638,1739161838786,-500.0,0.00010958,2]
[352549639,1739161838795,-500.0,0.00010958,2]
[352549640,1739161838804,-500.0,0.00010958,2]
[352549641,1739161838813,-597.30409777,0.00010958,2]
[352549642,1739161838823,-500.0,0.00010958,2]
[352549643,1739161838832,-500.0,0.00010958,2]
[352549644,1739161838841,-500.0,0.00010958,2]
[352549645,1739161838850,-501.21625667,0.00010958,2]
[352549646,1739161838860,-501.51816805,0.00010958,2]
[352549647,1739161838869,-500.51128462,0.00010958,2]
[352549648,1739161838878,-500.0,0.00010958,2]
[352549649,1739161838888,-1000.0,0.00010958,2]
[352549650,1739161838897,-500.0,0.00010958,2]
[352549651,1739161838907,-500.0,0.00010958,2]
[352549652,1739161838916,-500.0,0.00010958,2]
[352549653,1739161838925,-500.0,0.00010958,2]
[352549654,1739161838934,-500.0,0.00010958,2]
[352549655,1739161838944,-500.0,0.00010958,2]
[352549656,1739161838953,-502.31895964,0.00010958,2]
[352549657,1739161838963,-500.0,0.00010958,2]
[352549658,1739161838972,-520.43,0.00010958,2]
[352549659,1739161838981,-153.34083689,0.00010958,2]
[352549660,1739161838991,-500.0,0.00010958,2]
[352549661,1739161839000,-500.0,0.00010958,2]
[352549662,1739161839009,-190.38359555,0.00010958,2]
[352549663,1739161839019,-501.03239757,0.00010958,2]
[352549664,1739161839028,-500.0,0.00010958,2]
[352549665,1739161839037,-500.0,0.00010958,2]
[352549666,1739161839046,-500.56942217,0.00010958,2]
[352549667,1739161839056,-1330.52,0.00010958,2]
[352549668,1739161839065,-500.0,0.00010958,2]
[352549669,1739161839075,-500.0,0.00010958,2]
[352549670,1739161839084,-500.72410168,0.00010958,2]
[352549671,1739161839093,-500.0,0.00010958,2]
[352549672,1739161839103,-500.0,0.00010958,2]
[352549673,1739161839112,-500.0,0.00010958,2]
[352549674,1739161839122,-500.0,0.00010958,2]
[352549675,1739161839131,-500.0,0.00010958,2]
[352549676,1739161839141,-500.0,0.00010958,2]
[352549677,1739161839154,-624.38,0.00010958,2]
[352549678,1739161839164,-540.43901867,0.00010958,2]
[352549679,1739161839174,-503.96042683,0.00010958,2]
[352549680,1739161839183,-500.0,0.00010958,2]
[352549681,1739161839192,-500.0,0.00010958,2]
[352549682,1739161839201,-516.09,0.00010958,2]
[352549683,1739161839210,-1356.12,0.00010958,2]
[352549684,1739161839219,-500.0,0.00010958,2]
[352549685,1739161839229,-504.05618506,0.00010958,2]
[352549686,1739161839238,-501.62233902,0.00010958,2]
[352549687,1739161839247,-500.0,0.00010958,2]
[352549688,1739161839256,-527.4,0.00010958,2]
[352549689,1739161839265,-500.0,0.00010958,2]
[352549690,1739161839276,-614.45,0.00010958,2]
[352549691,1739161839285,-588.64,0.00010958,2]
[352549692,1739161839294,-502.60822326,0.00010958,2]
[352549693,1739161839303,-500.0,0.00010958,2]
[352549694,1739161839312,-500.0,0.00010958,2]
[352549695,1739161839321,-500.0,0.00010958,2]
[352549696,1739161839330,-500.0,0.00010958,2]
[352549697,1739161839339,-309.07352518,0.00010958,2]
[352549698,1739161839348,-567.69,0.00010958,2]
[352549699,1739161839357,-500.59424151,0.00010958,2]
[352549700,1739161839366,-501.02679964,0.00010958,2]
[352549701,1739161839375,-503.20074739,0.00010958,2]
[352549702,1739161839384,-500.0,0.00010958,2]
[352549703,1739161839394,-500.0,0.00010958,2]
[352549704,1739161839403,-500.0,0.00010958,2]
[352549705,1739161839413,-500.0,0.00010958,2]
[352549706,1739161839423,-500.0,0.00010958,2]
[352549707,1739161839432,-500.0,0.00010958,2]
[352549708,1739161839442,-500.0,0.00010958,2]
[352549709,1739161839455,-500.0,0.00010958,2]
[352549710,1739161839465,-500.0,0.00010958,2]
[352549711,1739161839474,-500.0,0.00010958,2]
[352549712,1739161839484,-500.0,0.00010958,2]
[352549713,1739161839494,-500.0,0.00010958,2]
[352549714,1739161839504,-500.0,0.00010958,2]
[352549715,1739161839513,-500.0,0.00010958,2]
[352549716,1739161839524,-500.0,0.00010958,2]
[352549717,1739161839534,-1743.01,0.00010958,2]
[352549718,1739161839545,-500.0,0.00010958,2]
[352549719,1739161839554,-500.0,0.00010958,2]
[352549720,1739161839564,-500.0,0.00010958,2]
[352549721,1739161839573,-500.0,0.00010958,2]
[352549722,1739161839583,-1531.32,0.00010958,2]
[352549723,1739161839592,-207.72769697,0.00010958,2]
[352549724,1739161839601,-626.15990179,0.00010958,2]
[352549725,1739161839610,-586.38,0.00010958,2]
[352549728,1739161839620,-500.0,0.00010958,2]
[352549730,1739161839629,-500.0,0.00010958,2]
[352549732,1739161839639,-681.56,0.00010958,2]
[352549733,1739161839648,-641.76692231,0.00010958,2]
[352549734,1739161839657,-500.0,0.00010958,2]
[352549735,1739161839666,-500.0,0.00010958,2]
[352549736,1739161839675,-500.0,0.00010958,2]
[352549737,1739161839685,-500.0,0.00010958,2]
[352549738,1739161839695,-500.0,0.00010958,2]
[352549739,1739161839704,-500.0,0.00010958,2]
[352549740,1739161839714,-500.0,0.00010958,2]